Cogmind - Beta 17.1 @@@ ROGUE MODE // 2026.09.12 @ 19:31:29 Player: Ethranok Result: Destroyed by M9-ZK4(R) with Subdweller Laser Performance ------------- Evolutions (0) 0 Regions Visited (2) 400 Robots Destroyed (29) 145 Value Destroyed (610) 610 Prototype IDs (1) 20 Alien Tech Used (0) 0 Bonus (0) 0 TOTAL SCORE: 1175 Bonus ------- None Cogmind --------- Core Integrity 0/250 Matter 274/300 Energy 54/100 System Corruption 0% Temperature Cool (6) Movement Core (400) Ox7 Location -10/Subcaves Parts ------- > --- POWER (1) -------- (None) > --- PROPULSION (2) --- (None) > --- UTILITY (2) ------ Large Storage Unit Signal Interpreter > --- WEAPON (2) ------- Subdweller Laser > --- INVENTORY (15) --- Cargo Storage Unit Small Battery (100) High-capacity Matter Pod (200) Targeting Computer Power Shielding Propulsion Shielding Weapon Shielding Light Armor Plating Autogun Mining Laser Mining Laser Peak State ------------ > --- POWER ------------ Cooled Ion Engine > --- PROPULSION ------- Light Treads Light Treads > --- UTILITY ---------- Large Storage Unit Signal Interpreter > --- WEAPON ----------- Autogun Autogun > --- INVENTORY -------- Ion Engine Cargo Storage Unit High-capacity Matter Pod Targeting Computer Propulsion Shielding Weapon Shielding Light Armor Plating Autogun Autogun Mining Laser Mining Laser [Rating: 12] Favorites ----------- Power Subdweller Power Source Engine Subdweller Power Source Propulsion Light Treads Treads Light Treads Utility Large Storage Unit Storage Large Storage Unit Processor Signal Interpreter Weapon Mining Laser Energy Gun Medium Laser Ballistic Gun Autogun Special Weapon Mining Laser Build | -11 -10 -10 ------- Run | Yrd Mat Sub Slots Evolved . | . . . Power . | . . . Propulsion . | . . . Utility . | . . . Weapon . | . . . Parts Attached 29 | 7 14 8 Power 8 | 2 3 3 Engine 8 | 2 3 3 Core . | . . . Reactor . | . . . Propulsion 3 | 2 1 . Treads 3 | 2 1 . Leg . | . . . Wheel . | . . . Hover . | . . . Flight . | . . . Utility 3 | 1 2 . Device . | . . . Storage 2 | 1 1 . Processor 1 | . 1 . Hackware . | . . . Protection . | . . . Artifact . | . . . Weapon 15 | 2 8 5 Energy Gun 3 | 2 . 1 Energy Cannon . | . . . Ballistic Gun 9 | . 6 3 Ballistic Cannon . | . . . Launcher . | . . . Special Weapon 3 | . 2 1 Impact Weapon . | . . . Slashing Weapon . | . . . Piercing Weapon . | . . . Special Melee Weapon . | . . . Unidentified Prototypes 1 | . 1 . Parts Lost 11 | . . 11 Power 2 | . . 2 Propulsion 3 | . . 3 Utility . | . . . Weapon 6 | . . 6 Highest Loss Streak 4 | . . 4 To Critical Strikes 1 | . . 1 Average Backups 10 | 2 7 12 Power . | . 1 . Propulsion . | . . . Utility 5 | . 3 7 Weapon 3 | . 2 4 Tool/Special . | . . . Unused Backups 12 | . 4 8 Power 2 | . 2 . Propulsion . | . . . Utility 8 | . . 8 Weapon 2 | . 2 . Tool/Special . | . . . Average Slot Usage (%) 86 | . 89 85 Engine 13 | . 13 13 Treads 19 | . 28 15 Storage 14 | . 14 14 Processor 10 | . 3 14 Energy Gun 2 | . 6 . Ballistic Gun 13 | . 20 10 Special Weapon 11 | . 1 16 Peak Build Rating 12 | 6 12 12 Average Rating 8 | 4 8 8 On Entrance 6 | . 6 12 Avg Prop Armor Cover (%) . | . . . Naked Turns . | . . . Heaviest Build 34 | 14 34 34 Greatest Support 40 | 40 40 40 Greatest Overweight (x) 9 | 2 . 9 Average Overweight (x) . | . . 1 Largest Inventory Capacity 15 | 8 15 15 Average Capacity 14 | 7 12 15 Most Carried 15 | 5 14 15 Average Carried 11 | 2 8 13 Final Capacity 15 | 8 15 15 Final Carried 14 | 2 14 12 Class Distribution -------------------- 100% | Mutant Dominant Class ---------------- Mutant | -10/Materials Mutant | -10/Subcaves Resources | -11 -10 -10 ----------- Run | Yrd Mat Sub Matter Collected 1037 | 207 327 503 Remotely . | . . . Salvage Created 802 | . 484 318 Parts 64 | . 42 22 Haulers Intercepted 1 | . 1 . Recyclers Shooed . | . . . Parts Field Recycled . | . . . Retrieved Matter . | . . . Parts Self-Destructed 10 | . . 10 Prevented . | . . . Parts Restored . | . . . Kills | -11 -10 -10 ------- Run | Yrd Mat Sub Combat Hostiles Destroyed 24 | . 17 7 Guns 23 | . 16 7 AOE 1 | . 1 . Classes Destroyed 8 | . 7 1 Worker 1 | . 1 . Builder 1 | . 1 . Hauler 1 | . 1 . Operator 1 | . 1 . Watcher 1 | . 1 . Swarmer 12 | . 12 . Grunt 5 | . 5 . Subdweller 7 | . . 7 Best Kill Streak 9 | . 9 1 Combat Bots Only 9 | . 9 1 Max Kills in Single Turn 2 | . 2 1 Gunslinging 1 | . 1 . Exploded 1 | . 1 . Melee . | . . . Uniques/NPCs Destroyed . | . . . Combat | -11 -10 -10 -------- Run | Yrd Mat Sub Hostile Shots Fired 136 | . 70 66 Missed 42 | . 28 14 Hits 94 | . 42 52 Projectile 94 | . 42 52 Critical Strikes 3 | . . 3 Damage Taken 1785 | . 408 1377 Core 253 | . 56 197 Absorbed by Shields . | . . . Regen/Repaired (Parts) 113 | . 113 . Core Remaining (%) 100 | 100 . . Volleys Fired 154 | . 67 87 Largest 2 | . 2 2 Hottest 200 | . 200 200 Shots Fired 288 | . 124 164 Gun 204 | . 122 82 Cannon . | . . . Launcher . | . . . Special 84 | . 2 82 Kinetic 164 | . 90 74 Thermal 108 | . 18 90 Explosive . | . . . Electromagnetic 16 | . 16 . Robot Hit Streak 12 | . 7 12 Robot Miss Streak 3 | . 3 2 Penetration Max . | . . . Secondary Targets 3 | . 3 . Max Gunslinging Chain 1 | . 1 . Shots Hit Robots 155 | . 76 79 Core Hits 53 | . 33 20 Critical Kills . | . . . Critical Parts Destroyed . | . . . Critical Strikes 3 | . 2 1 Burn 2 | . 2 . Destroy 1 | . . 1 Melee Attacks . | . . . Impact . | . . . Slashing . | . . . Piercing . | . . . Sneak Attacks . | . . . Combat Hostiles . | . . . Follow-up Attacks . | . . . Damage Inflicted 2316 | . 945 1371 Guns 1853 | . 866 987 Cannons . | . . . Explosions 74 | . 74 . Melee . | . . . Ramming 5 | . 5 . Kinetic 1420 | . 559 861 Thermal 711 | . 201 510 Explosive . | . . . Electromagnetic 180 | . 180 . Impact . | . . . Slashing . | . . . Piercing . | . . . Highest Corruption . | . . . Average Corruption . | . . . Corruption Purged . | . . . Corruption Blocked . | . . . Overload Shots . | . . . Overflow Damage . | . . . Projectiles . | . . . Explosions . | . . . Melee . | . . . Knockbacks . | . . . Impact . | . . . Kinetic . | . . . Secondary . | . . . Self-Inflicted Damage 53 | . 53 . Shots 2 | . 2 . Rammed 4 | . 4 . Targets Rammed 4 | . 4 . Kicked . | . . . Crushed . | . . . Highest Temperature 264 | . 264 247 Average Temperature 53 | . 46 102 Received Heat Transfer 502 | . 54 448 Siege Activations . | . . . Martial Activations . | . . . Shielding Activations . | . . . Robots Disrupted . | . . . Combat Hostiles . | . . . Robots Corrupted . | . . . Combat Hostiles . | . . . Parts Fried . | . . . Impact Corruptions . | . . . Robots Melted . | . . . Combat Hostiles . | . . . Parts Melted 1 | . 1 . Heat Transferred 1568 | . 618 950 Parts Sabotaged . | . . . Parts Stolen . | . . . Parts Stripped . | . . . Power Chain Reactions 2 | . 2 . Alert | -11 -10 -10 ------- Run | Yrd Mat Sub Maximum Alert Level . | . . . Low Security (%) 100 | 100 100 . Level 1 . | . . . Level 2 . | . . . Level 3 . | . . . Level 4 . | . . . Level 5 . | . . . High Security . | . . . Max Security . | . . . Peak Influence 190 | . 190 . Initial . | . . . Average 66 | . 68 . Influence Increases 452 | . 452 . Destroy 0b10 Robot/C 340 | . 340 . Destroy 0b10 Robot/NC 25 | . 25 . Destroy Leader 64 | . 64 . Successful Hack 19 | . 19 . Destroy Structure 4 | . 4 . Influence Decreases 452 | . 452 . Time Decay 452 | . 452 . Squads Dispatched 2 | . 2 . Investigation . | . . . Extermination . | . . . Reinforcement 2 | . 2 . Assault . | . . . Garrison . | . . . Intercept . | . . . Searches Triggered . | . . . Construction Impeded . | . . . Haulers Reinforced . | . . . Active Scanning Responses . | . . . Cargo Convoy Interrupts . | . . . Stealth | -11 -10 -10 --------- Run | Yrd Mat Sub Distress Signals 4 | . 4 . Communications Jammed . | . . . Distress Signals . | . . . Times Spotted 38 | . 30 8 Peak Tracking Total 4 | . 4 2 Tactical Retreats . | . . . Traps | -11 -10 -10 ------- Run | Yrd Mat Sub Traps Triggered 7 | . 1 6 Indirectly . | . . . Trap Hack Attempts . | . . . Triggered . | . . . Disarmed . | . . . Reprogrammed . | . . . Reused . | . . . Traps Extracted . | . . . Installed . | . . . Triggered . | . . . Machines | -11 -10 -10 ---------- Run | Yrd Mat Sub Machines Disabled 1 | . 1 . Max in Single Turn 1 | . 1 . Machines Repaired . | . . . Machines Dismantled . | . . . Machines Sabotaged . | . . . Overloaded Fab Kills . | . . . Hacking | -11 -10 -10 --------- Run | Yrd Mat Sub Machines Accessed 12 | . 9 3 Terminals 6 | . 6 . Fabricators . | . . . Repair Stations 1 | . 1 . Recycling Units 2 | . 2 . Scanalyzers . | . . . Garrison Access . | . . . Total Hacks 28 | . 20 8 Successful 17 | . 9 8 Failed 11 | . 11 . Catastrophic 2 | . 2 . Database Lockouts . | . . . Manual 15 | . 15 . Terminals 14 | . 14 . Fabricators . | . . . Repair Stations 2 | . 2 . Recycling Units 4 | . 4 . Scanalyzers . | . . . Garrison Access . | . . . Terminal Hacks 12 | . 4 8 Record 6 | . . 6 Part Schematic 1 | . 1 . Robot Analysis 2 | . 2 . Open Door 1 | . . 1 Terminal Index 1 | . 1 . Release Object 1 | . . 1 Fabricator Hacks . | . . . Repair Station Hacks 2 | . 2 . Scan Component 1 | . 1 . Repair 1 | . 1 . Recycling Unit Hacks 3 | . 3 . Report Inventory 2 | . 2 . Retrieve Matter 1 | . 1 . Scanalyzer . | . . . Garrison Access Hacks . | . . . Unauthorized Hacks . | . . . Terminals . | . . . Fabricators . | . . . Repair Stations . | . . . Recycling Units . | . . . Scanalyzers . | . . . Garrison Access . | . . . Data Cores Recovered . | . . . Used . | . . . Hacking Detections 8 | . 8 . Full Trace Events 3 | . 3 . Feedback Events . | . . . Feedback Blocked . | . . . Robot Schematics Acquired . | . . . Robots Built . | . . . Authchips . | . . . Time . | . . . Total Robot Build Rating . | . . . Part Schematics Acquired 1 | . 1 . Parts Built . | . . . Authchips . | . . . Time . | . . . Total Part Build Rating . | . . . Part Studies Acquired . | . . . Parts Repaired 1 | . 1 . Time 26 | . 26 . Parts Recycled . | . . . Recycled Matter . | . . . Retrieved Matter 166 | . 166 . Retrieved Components . | . . . Parts Scanalyzed . | . . . Part Schematics Acquired . | . . . Parts Damaged . | . . . Bothacking | -11 -10 -10 ------------ Run | Yrd Mat Sub Used RIF Installer . | . . . Robots Hacked . | . . . Non-combat . | . . . Combat . | . . . Robot Hacks Applied . | . . . Relay Couplers Released . | . . . Fabnet Peak Effective % . | . . . Robots Rewired . | . . . Allies Hacked . | . . . Hacks Repelled . | . . . Allies | -11 -10 -10 -------- Run | Yrd Mat Sub Total Allies . | . . . Largest Group . | . . . Highest-Rated Group . | . . . Highest-Rated Ally . | . . . Total Orders . | . . . Ally Attacks . | . . . Total Damage . | . . . Kills . | . . . Allies Corrupted . | . . . Allies Melted . | . . . Intel | -11 -10 -10 ------- Run | Yrd Mat Sub Active Infowar (turns) . | . . . Robot Analysis Total 2 | . 2 . Derelict Logs Recovered 1 | . . 1 Drone Launches . | . . . Drone Recoveries . | . . . Exploration | -11 -10 -10 ------------- Run | Yrd Mat Sub Turns Passed 4701 | 59 1577 3065 Spaces Moved 1961 | 35 804 1122 Core 175 | 14 . 161 Treads 1786 | 21 804 961 Legs . | . . . Wheels . | . . . Hover . | . . . Flight . | . . . Fastest Speed 50 | 50 160 160 Average Speed 200 | 127 160 231 Slowest Speed 500 | 160 160 500 Overloaded Moves . | . . . Propulsion Burnouts . | . . . Robots Hopped . | . . . Potential Cave-ins . | . . . Cave-ins Triggered . | . . . Exploration Rate (%) 54 | 2 89 71 Regions Visited 2 Branch Regions 1 Pre-discovered Areas 1 | . . 1 Known Exits Taken 1 | . 1 . Unknown Exits Taken 1 | 1 . . Scrap Searched . | . . . Spaces Dug 1 | . 1 . Terrain Destroyed 4 | . 4 . Melee . | . . . Projectile 1 | . 1 . AOE 3 | . 3 . Terrain Rammed . | . . . Walls Destroyed . | . . . Machines Disabled . | . . . Actions | -11 -10 -10 --------- Run | Yrd Mat Sub Total 2286 | 49 983 1254 Wait 59 | . 50 9 Move 1959 | 34 803 1122 Hop . | . . . Pick Up 44 | 8 28 8 Fast Attach . | . . . Attach 16 | 6 3 7 Detach . | . . . Swap 32 | 1 14 17 Drop 17 | . 14 3 Fire 154 | . 67 87 Melee . | . . . Ram . | . . . Kick . | . . . Crush 4 | . 4 . Escape Stasis . | . . . Rewire . | . . . Trap . | . . . Miscellaneous 1 | . . 1 Route ------- -11/Scrapyard -10/Materials (discovered 5 exits: *Mat x3 / [*Min] / *Sub) -10/Subcaves (discovered 4 exits: *Mat x2 / Rec / *Scr) History --------- Turn | Location | Event 7 | -11/Scrapyard | Discovered new exit (range 16) 60 | -11/Scrapyard | Entered Materials 61 | -10/Materials | Met a group of wandering Federalists 76 | -10/Materials | Discovered new exit (range 10) 285 | -10/Materials | Discovered new exit (range 14) 308 | -10/Materials | Build established: Mutant 479 | -10/Materials | Destroyed 9 combat bots 565 | -10/Materials | Discovered new exit (range 3) 890 | -10/Materials | Discovered new exit (range 16) 1256 | -10/Materials | Discovered new exit (range 16) 1282 | -10/Materials | Identified exit to Materials 1551 | -10/Materials | Repaired Lgt. Treads 1635 | -10/Materials | Identified exit to Subcaves 1637 | -10/Materials | Entered Subcaves 1638 | -10/Subcaves | Continued accompanying wandering Federalists (5) 1704 | -10/Subcaves | Discovered new exit (range 3) 1707 | -10/Subcaves | Identified exit to Materials 2510 | -10/Subcaves | Identified exit to Scraptown 2549 | -10/Subcaves | Discovered exit to Materials (range 10) 2736 | -10/Subcaves | Core integrity fell below 50% 3112 | -10/Subcaves | Released subatomizers from SUBCON Basin 3454 | -10/Subcaves | Visited Clippyterm 3461 | -10/Subcaves | Learned location of Section 7 (-2) 3461 | -10/Subcaves | Learned Research security intel 3672 | -10/Subcaves | Identified exit to Recycling 3954 | -10/Subcaves | Lost 4 parts (1n3w) 4679 | -10/Subcaves | Core integrity fell below 20% 4702 | -10/Subcaves | Destroyed by M9-ZK4(R) with Subdweller Laser Last Messages --------------- Loading 1 Subcaves exit... 03853_ Sub. Power Source shoots sparks and powers down. 03858_ Dropped Broken Sub. Power Source. 03889_ Mining Laser destroyed. 03893_ Lgt. Treads destroyed. 03898_ A4-I7P(R) destroyed. 03900_ Acquired Sml. Battery. 03901_ 34-EI3(R) suffers critical hit (Destroy). 03907_ Sub. Machine Gun shoots sparks and powers down. 03915_ Broken Sub. Machine Gun destroyed. 03918_ Destroyed Scrap Shield. 03923_ Autogun destroyed. 03923_ 34-EI3(R) destroyed. 03925_ Acquired Sub. Laser. 03931_ Acquired Mining Laser. 03932_ Acquired 101 matter. 03937_ Acquired 9 matter. 04160_ Acquired 11 matter. 04676_ Ion Engine destroyed. 04694_ Autogun destroyed. Map ----- +----------------------------------------------------+ | ?????????????????????????????????????????????????? | | ?????????????????????????????????????????????????? | | ?????????????????????????????????????????????????? | | ?????????????????????????????????????????????????? | | ?????????????????????????????????????????????????? | | ?????????????????????????????????????????????????? | | ?????????????????????????????????????????????????? | | ?????????????????????????????????????????????????? | | ?????????????????????????????????????????????????? | | ?????????????????????????????????????????????????? | | ?????????????????????????????????????????????????? | | ?????????????????????????????????????????????????? | | ?????????????????????????????????????????????????? | | ?????????????????????????????????????????????????? | | ?????????????????????????????????????????????????? | | ????????????????????????#######??????????????????? | | ???????????????????????? ##?????????????????? | | ????????????????????????# ??????????????????? | | ????????????????????????#< ??????? ??????????? | | ???????????????????????? ?????? ??????????? | | ????????????????????????#R ?????? ?????????? | | ????????????????????????# #????? ?????????? | | ???????????????????????## ##### ?????????? | | ??????????????????????## # #????????? | | ??????????????????????? #????????? | | ????????????????????###?#@ #????????? | | ?????????###?????#### ### # ????????? | | ????????## ##????# ## #??????????????????? | | ???????## ##???# #??????????????????? | | ??????## ##### ###??????????????????? | | ??????# ## ## ##????????????????????? | | ??????# ######?????????????????????? | | ??????## ## ####??????????????????????????? | | ???????###### ##????????????????????????????? | | ????????????## # ##???????????????????????????? | | ????????????## # ##??????????????????????????? | | ???????????## ## #??##??????????????????????? | | ???????????# ## ##?# #??????????????????????? | | ???????????# # ### #??????????????????????? | | ???????????# ## ## #??????????????????????? | | ??????????## #???????????????????????? | | #?????????# ##???????????????????????? | | #????????## #????????????????????????? | | ####????## #????????????????????????? | | #????# #????????????????????????? | | #???## #????????????????????????? | | ##?## ##????????????????????????? | | ## ###?????????????????????????? | | ?# =% ###?????????????????????????? | | ?## ##????????????????????????? | +----------------------------------------------------+ Best States ------------- Heat Dissipation 25 Energy Generation 15 Energy Capacity 280 Matter Stores 300 Matter Capacity 300 Sight Range 16 Terrain Scan Density 10 Evasion (%) 50 Recoil Reduction 2 Item Schematics ----------------- Lgt. Cannon | -10/Materials | Hacked Robot Schematics ------------------ None Fabricated ------------ Nothing Repaired ---------- Lgt. Treads | 19% | -10/Materials Studied --------- None Alien Tech Used ----------------- None Achievements -------------- None Challenges ------------ None Game ------ Seed PowerPhaseMagmablaster Manual? 0 Play Time 00:34:15 Cumulative 16.1 hours Start 2026.09.12 @ 19:00:19 End 2026.09.12 @ 19:31:29 Sessions 1 Manual Loads 0 Difficulty Rogue Special Mode None Game No. 23 Rogue 23 Adventurer 0 Explorer 0 Win Type - Total 0 Types 0/0/0/0/0/0/0/0/0/0 Lore% 7 Gallery% 12 Achievement% 13 Wizard Run 0 Options --------- Layout 0 ASCII 0 Keyboard 0 Movement Arrows Keybinds 0 Fullscreen 1 Font 24/Smallcaps Map View 113x50 Zoom Use 87% Tactical HUD 1 Map Filters NONE Filters NONE Steam 1 RUN: ae39150e-5c65-41c2-be4a-6818c83dc117